fUSD/lending_fUSD_20250521
["ID","MTS","AMOUNT","RATE_DAILY","PERIOD"]
[361808874,1747823453468,-1804.92,0.00032876,5]
[361808875,1747823453478,-931.82,0.00032876,5]
[361808876,1747823453487,-420.0,0.00032876,5]
[361808877,1747823453497,-3820.81,0.00032876,5]
[361808878,1747823453506,-420.0,0.00032876,5]
[361808879,1747823453516,-420.0,0.00032876,5]
[361808880,1747823453526,-420.0,0.00032876,5]
[361808881,1747823453535,-446.52,0.00032876,5]
[361808882,1747823453546,-3379.22,0.00032876,5]
[361808883,1747823453556,-552.29,0.00032876,5]
[361808884,1747823453566,-420.0,0.00032876,5]
[361808885,1747823453575,-2204.62,0.00032876,5]
[361808886,1747823453585,-183.76283,0.00032876,5]
[361808887,1747823453594,-1365.61,0.00032876,5]
[361808888,1747823453604,-739.98,0.00032876,5]
[361808889,1747823453614,-1686.16,0.00032876,5]
[361808890,1747823453623,-420.0,0.00032876,5]
[361808891,1747823453632,-638.15,0.00032876,5]
[361808892,1747823453642,-420.0,0.00032876,5]
[361808893,1747823453652,-605.2,0.00032876,5]
[361808894,1747823453662,-2851.0,0.00032876,5]
[361808895,1747823453671,-420.0,0.00032876,5]
[361808896,1747823453682,-420.0,0.00032876,5]
[361808897,1747823453692,-420.0,0.00032876,5]
[361808898,1747823453701,-1513.514558,0.00032876,5]
[361808899,1747823453711,-669.03,0.00032876,5]
[361808900,1747823453720,-641.93,0.00032876,5]
[361808901,1747823453730,-420.0,0.00032876,5]
[361808902,1747823453740,-1056.24,0.00032876,5]
[361808903,1747823453750,-420.0,0.00032876,5]
[361808904,1747823453760,-420.0,0.00032876,5]
[361808905,1747823453770,-420.0,0.00032876,5]
[361808906,1747823453780,-420.0,0.00032876,5]
[361808907,1747823453790,-3414.72,0.00032876,5]
[361808908,1747823453801,-420.0,0.00032876,5]
[361808909,1747823453812,-420.0,0.00032876,5]
[361808910,1747823453823,-456.44,0.00032876,5]
[361808911,1747823453833,-340.35225102,0.00032876,5]
[361808912,1747823453845,-2738.58,0.00032876,5]
[361808913,1747823453855,-626.72,0.00032876,5]
[361808914,1747823453865,-1961.22,0.00032876,5]
[361808915,1747823453875,-4019.16,0.00032876,5]
[361808916,1747823453885,-420.0,0.00032876,5]
[361808917,1747823453895,-420.0,0.00032876,5]
[361808918,1747823453905,-420.0,0.00032876,5]
[361808919,1747823453915,-420.0,0.00032876,5]
[361808920,1747823453927,-437.02,0.00032876,5]
[361808921,1747823453938,-501.19,0.00032876,5]
[361808922,1747823453951,-420.0,0.00032876,5]
[361808923,1747823453961,-420.0,0.00032876,5]
[361808924,1747823453972,-420.0,0.00032876,5]
[361808925,1747823453983,-3829.73,0.00032876,5]
[361808926,1747823453993,-1171.35,0.00032876,5]
[361808927,1747823454003,-1195.86,0.00032876,5]
[361808928,1747823454012,-1602.68,0.00032876,5]
[361808929,1747823454022,-363.69092735,0.00032876,5]
[361808930,1747823454032,-1595.56,0.00032876,5]
[361808931,1747823454042,-420.0,0.00032876,5]
[361808932,1747823454164,-420.0,0.00032876,5]
[361808933,1747823454175,-420.0,0.00032876,5]
[361808934,1747823454185,-1403.63,0.00032876,5]
[361808935,1747823454196,-420.0,0.00032876,5]
[361808936,1747823454206,-1620.22,0.00032876,5]
[361808937,1747823454216,-2127.07,0.00032876,5]
[361808938,1747823454227,-1651.18,0.00032876,5]
[361808939,1747823454238,-975.42,0.00032876,5]
[361808940,1747823454247,-420.0,0.00032876,5]
[361808941,1747823454256,-663.27,0.00032876,5]
[361808942,1747823454267,-4718.07,0.00032876,5]
[361808943,1747823454277,-560.95,0.00032876,5]
[361808944,1747823454287,-701.41,0.00032876,5]
[361808945,1747823454296,-154.385502,0.00032876,5]
[361808946,1747823454306,-420.0,0.00032876,5]
[361808947,1747823454317,-950.44,0.00032876,5]
[361808948,1747823454326,-420.0,0.00032876,5]
[361808949,1747823454336,-420.0,0.00032876,5]
[361808950,1747823454347,-708.42,0.00032876,5]
[361808951,1747823454357,-3358.3,0.00032876,5]
[361808952,1747823454367,-420.0,0.00032876,5]
[361808953,1747823454377,-3071.77,0.00032876,5]
[361808954,1747823454388,-1131.94,0.00032876,5]
[361808955,1747823454398,-420.0,0.00032876,5]
[361808956,1747823454408,-1890.69,0.00032876,5]
[361808957,1747823454417,-2588.8,0.00032876,5]
[361808958,1747823454429,-420.0,0.00032876,5]
[361808959,1747823454439,-420.28896483,0.00032876,5]
[361808960,1747823454448,-1081.97,0.00032876,5]
[361808961,1747823454458,-420.0,0.00032876,5]
[361808962,1747823454469,-447.09,0.00032876,5]
[361808963,1747823454479,-420.0,0.00032876,5]
[361808964,1747823454489,-1061.79,0.00032876,5]
[361808965,1747823454499,-3165.26,0.00032876,5]
[361808966,1747823454509,-1578.73,0.00032876,5]
[361808967,1747823454518,-420.0,0.00032876,5]
[361808968,1747823454527,-509.52321966,0.00032876,5]
[361808969,1747823454537,-420.0,0.00032876,5]
[361808970,1747823454547,-437.54,0.00032876,5]
[361808971,1747823454556,-801.31,0.00032876,5]
[361808972,1747823454566,-420.0,0.00032876,5]
[361808973,1747823454575,-420.0,0.00032876,5]
[361808974,1747823454584,-420.0,0.00032876,5]
[361808975,1747823454594,-1117.87,0.00032876,5]
[361808976,1747823454603,-590.41,0.00032876,5]
[361808977,1747823454612,-646.24,0.00032876,5]
[361808978,1747823454621,-469.33,0.00032876,5]
[361808979,1747823454631,-420.0,0.00032876,5]
[361808980,1747823454640,-1582.05,0.00032876,5]
[361808981,1747823454649,-420.0,0.00032876,5]
[361808982,1747823454659,-420.0,0.00032876,5]
[361808983,1747823454669,-944.65,0.00032876,5]
[361808984,1747823454678,-420.0,0.00032876,5]
[361808985,1747823454688,-420.0,0.00032876,5]
[361808986,1747823454697,-1388.27,0.00032876,5]
[361808987,1747823454708,-420.0,0.00032876,5]
[361808988,1747823454717,-478.02399997,0.00032876,5]
[361808989,1747823454727,-817.62,0.00032876,5]
[361808990,1747823454737,-420.0,0.00032876,5]
[361808991,1747823454748,-420.0,0.00032876,5]
[361808992,1747823454758,-420.0,0.00032876,5]
[361808993,1747823454768,-1313.42,0.00032876,5]
[361808994,1747823454777,-2712.821305,0.00032876,5]
[361808995,1747823454787,-2499.18,0.00032876,5]
[361808996,1747823454797,-420.0,0.00032876,5]
[361808997,1747823454807,-420.0,0.00032876,5]
[361808998,1747823454816,-591.99,0.00032876,5]
[361808999,1747823454826,-420.0,0.00032876,5]
[361809000,1747823454835,-420.0,0.00032876,5]
[361809001,1747823454844,-2676.06,0.00032876,5]
[361809002,1747823454854,-420.0,0.00032876,5]
[361809003,1747823454863,-420.0,0.00032876,5]
[361809004,1747823454873,-346.84968192,0.00032876,5]
[361809005,1747823454883,-420.0,0.00032876,5]
[361809006,1747823454893,-1630.17,0.00032876,5]
[361809007,1747823454903,-2046.62,0.00032876,5]
[361809008,1747823454913,-707.44,0.00032876,5]
[361809009,1747823454922,-420.0,0.00032876,5]
[361809010,1747823454934,-420.0,0.00032876,5]
[361809011,1747823454943,-420.0,0.00032876,5]
[361809012,1747823454953,-524.92,0.00032876,5]
[361809013,1747823454962,-844.05,0.00032876,5]
[361809014,1747823454971,-603.94,0.00032876,5]
[361809015,1747823454980,-420.0,0.00032876,5]
[361809016,1747823454990,-2122.24,0.00032876,5]
[361809017,1747823454999,-5021.23,0.00032876,5]
[361809018,1747823455008,-1386.81,0.00032876,5]
[361809019,1747823455019,-1529.49,0.00032876,5]
[361809020,1747823455029,-1250.7,0.00032876,5]
[361809021,1747823455040,-420.0,0.00032876,5]
[361809022,1747823455050,-1682.48,0.00032876,5]
[361809023,1747823455060,-730.49,0.00032876,5]
[361809024,1747823455069,-420.0,0.00032876,5]
[361809025,1747823455080,-493.22868676,0.00032876,5]
[361809026,1747823455089,-420.0,0.00032876,5]
[361809027,1747823455098,-447.9,0.00032876,5]
[361809028,1747823455108,-420.0,0.00032876,5]
[361809029,1747823455118,-1324.88,0.00032876,5]
[361809030,1747823455127,-2229.66,0.00032876,5]
[361809031,1747823455137,-472.1,0.00032876,5]
[361809032,1747823455147,-420.0,0.00032876,5]
[361809033,1747823455156,-434.93,0.00032876,5]
[361809034,1747823455167,-420.0,0.00032876,5]
[361809035,1747823455176,-1282.33,0.00032876,5]
[361809036,1747823455186,-420.0,0.00032876,5]
[361809037,1747823455196,-2643.47,0.00032876,5]
[361809038,1747823455206,-444.34,0.00032876,5]
[361809039,1747823455216,-420.0,0.00032876,5]
[361809040,1747823455226,-420.0,0.00032876,5]
[361809041,1747823455236,-1343.09,0.00032876,5]
[361809042,1747823455246,-600.65,0.00032876,5]
[361809043,1747823455255,-5000.0,0.00032876,2]
[361809044,1747823455267,-1076.93,0.00032876,5]
[361809045,1747823455277,-5000.0,0.00032876,3]
[361809046,1747823455287,-5000.0,0.00032876,4]
[361809047,1747823455299,-420.0,0.00032876,5]
[361809048,1747823455308,-5000.0,0.00032876,5]
[361809049,1747823455317,-5000.0,0.00032876,6]
[361809050,1747823455327,-5000.0,0.00032876,7]
[361809051,1747823455337,-5000.0,0.00032876,8]
[361809052,1747823455348,-5000.0,0.00032876,9]
[361809053,1747823455358,-5000.0,0.00032876,10]
[361809054,1747823455367,-5000.0,0.00032876,11]
[361809055,1747823455376,-5000.0,0.00032876,12]
[361809056,1747823455387,-5000.0,0.00032876,13]
[361809057,1747823455396,-5000.0,0.00032876,14]
[361809058,1747823455406,-804.58212333,0.00032876,15]
[361809059,1747823455415,-1416.84,0.00032876,5]
[361809060,1747823455426,-1332.5,0.00032876,5]
[361809061,1747823455435,-1392.97,0.00032876,5]
[361809062,1747823455445,-682.19,0.00032876,5]
[361809063,1747823455455,-420.0,0.00032876,5]
[361809064,1747823455464,-438.34,0.00032876,5]
[361809065,1747823455476,-420.0,0.00032876,5]
[361809066,1747823455485,-791.4,0.00032876,5]
[361809067,1747823455494,-420.0,0.00032876,5]
[361809068,1747823455504,-1000.0,0.00032876,30]
[361809069,1747823455517,-632.83,0.00032876,5]
[361809070,1747823455526,-420.0,0.00032876,5]
[361809071,1747823455535,-420.0,0.00032876,5]
[361809072,1747823455545,-713.78,0.00032876,5]
[361809073,1747823455555,-420.0,0.00032876,5]
[361809074,1747823455564,-2568.63,0.00032876,5]
[361809075,1747823455574,-420.0,0.00032876,5]
[361809076,1747823455584,-420.0,0.00032876,5]
[361809077,1747823455593,-1222.57,0.00032876,5]
[361809078,1747823455603,-420.0,0.00032876,5]
[361809079,1747823455612,-420.0,0.00032876,5]
[361809080,1747823455622,-3400.95,0.00032876,5]
[361809081,1747823455632,-1185.11,0.00032876,5]
[361809082,1747823455642,-420.0,0.00032876,5]
[361809083,1747823455652,-420.0,0.00032876,5]
[361809084,1747823455663,-420.0,0.00032876,5]
[361809085,1747823455673,-618.99,0.00032876,5]
[361809086,1747823455683,-559.3,0.00032876,5]
[361809087,1747823455693,-2592.87,0.00032876,5]
[361809088,1747823455704,-420.0,0.00032876,5]
[361809089,1747823455714,-729.48,0.00032876,5]
[361809090,1747823455724,-1036.77,0.00032876,5]
[361809091,1747823455734,-420.0,0.00032876,5]
[361809092,1747823455745,-912.69,0.00032876,5]
[361809093,1747823455755,-2077.17,0.00032876,5]
[361809094,1747823455766,-474.23,0.00032876,5]
[361809095,1747823455776,-633.02,0.00032876,5]
[361809096,1747823455786,-2143.32,0.00032876,5]
[361809097,1747823455795,-420.0,0.00032876,5]
[361809098,1747823455806,-2433.64,0.00032876,5]
[361809099,1747823455816,-420.0,0.00032876,5]
[361809100,1747823455826,-2156.45,0.00032876,5]
[361809101,1747823455835,-680.33,0.00032876,5]
[361809102,1747823455845,-1587.63,0.00032876,5]
[361809103,1747823455855,-420.0,0.00032876,5]
[361809104,1747823455865,-3338.68,0.00032876,5]
[361809105,1747823455874,-420.0,0.00032876,5]
[361809106,1747823455884,-420.0,0.00032876,5]
[361809107,1747823455894,-2132.67,0.00032876,5]
[361809108,1747823455904,-539.66,0.00032876,5]
[361809109,1747823455914,-1108.21,0.00032876,5]
[361809110,1747823455924,-420.0,0.00032876,5]
[361809111,1747823455933,-1448.56,0.00032876,5]
[361809112,1747823455946,-1231.09,0.00032876,5]
[361809113,1747823455957,-1449.81,0.00032876,5]
[361809114,1747823455967,-420.0,0.00032876,5]
[361809115,1747823455977,-2507.82,0.00032876,5]
[361809116,1747823455986,-461.55,0.00032876,5]
[361809117,1747823455996,-420.0,0.00032876,5]
[361809118,1747823456005,-2269.59,0.00032876,5]
[361809119,1747823456016,-3289.43,0.00032876,5]
[361809120,1747823456026,-420.0,0.00032876,5]
[361809121,1747823456035,-1017.25,0.00032876,5]
[361809122,1747823456045,-420.0,0.00032876,5]
[361809123,1747823456055,-420.0,0.00032876,5]
[361809124,1747823456064,-1196.46,0.00032876,5]
[361809125,1747823456073,-420.0,0.00032876,5]
[361809126,1747823456083,-420.0,0.00032876,5]
[361809127,1747823456092,-1902.38,0.00032876,5]
[361809128,1747823456102,-4528.11,0.00032876,5]
[361809129,1747823456112,-420.0,0.00032876,5]
[361809130,1747823456122,-437.58,0.00032876,5]
[361809131,1747823456132,-2709.01,0.00032876,5]
[361809132,1747823456141,-934.68,0.00032876,5]
[361809133,1747823456151,-3000.52,0.00032876,5]
[361809134,1747823456161,-644.31,0.00032876,5]
[361809135,1747823456171,-2558.61,0.00032876,5]
[361809136,1747823456180,-420.0,0.00032876,5]
[361809137,1747823456189,-919.21,0.00032876,5]
[361809138,1747823456199,-420.0,0.00032876,5]
[361809139,1747823456209,-420.0,0.00032876,5]
[361809140,1747823456219,-3800.75,0.00032876,5]
[361809141,1747823456228,-490.25543438,0.00032876,5]
[361809142,1747823456238,-1016.83,0.00032876,5]
[361809143,1747823456248,-420.0,0.00032876,5]
[361809144,1747823456258,-420.0,0.00032876,5]
[361809145,1747823456269,-420.0,0.00032876,5]
[361809146,1747823456279,-1283.86,0.00032876,5]
[361809147,1747823456288,-420.0,0.00032876,5]
[361809148,1747823456298,-5012.54,0.00032876,5]
[361809149,1747823456307,-4257.36,0.00032876,5]
[361809150,1747823456317,-420.0,0.00032876,5]
[361809151,1747823456326,-420.0,0.00032876,5]
[361809152,1747823456335,-420.0,0.00032876,5]
[361809153,1747823456352,-2661.46,0.00032876,5]
[361809154,1747823456362,-420.0,0.00032876,5]
[361809155,1747823456371,-7175.57,0.00032876,5]
[361809156,1747823456382,-420.0,0.00032876,5]
[361809157,1747823456392,-420.0,0.00032876,5]
[361809158,1747823456402,-420.0,0.00032876,5]
[361809159,1747823456412,-1626.84,0.00032876,5]
[361809160,1747823456422,-420.0,0.00032876,5]
[361809161,1747823456433,-420.0,0.00032876,5]
[361809162,1747823456444,-7478.95,0.00032876,5]
[361809163,1747823456454,-1050.66,0.00032876,5]
[361809164,1747823456464,-1297.42,0.00032876,5]
[361809165,1747823456475,-420.0,0.00032876,5]
[361809166,1747823456484,-3186.22,0.00032876,5]
[361809167,1747823456494,-459.54,0.00032876,5]
[361809168,1747823456503,-1603.59,0.00032876,5]
[361809169,1747823456513,-420.0,0.00032876,5]
[361809170,1747823456525,-1706.72,0.00032876,5]
[361809171,1747823456535,-1118.07,0.00032876,5]
[361809172,1747823456545,-1819.17,0.00032876,5]
[361809173,1747823456554,-3456.53,0.00032876,5]
[361809174,1747823456564,-420.0,0.00032876,5]
[361809175,1747823456574,-477.62,0.00032876,5]
[361809176,1747823456584,-500.47,0.00032876,5]
[361809177,1747823456594,-420.0,0.00032876,5]
[361809178,1747823456604,-420.0,0.00032876,5]
[361809179,1747823456613,-1245.18,0.00032876,5]
[361809180,1747823456625,-864.67,0.00032876,5]
[361809181,1747823456635,-485.82,0.00032876,5]
[361809182,1747823456645,-1044.28,0.00032876,5]
[361809183,1747823456655,-2279.99,0.00032876,5]
[361809184,1747823456667,-483.53,0.00032876,5]
[361809185,1747823456678,-420.0,0.00032876,5]
[361809186,1747823456688,-420.0,0.00032876,5]
[361809187,1747823456699,-420.0,0.00032876,5]
[361809188,1747823456709,-1093.42,0.00032876,5]
[361809189,1747823456720,-773.61,0.00032876,5]
[361809190,1747823456730,-420.0,0.00032876,5]
[361809191,1747823456740,-1587.6,0.00032876,5]
[361809192,1747823456750,-2000.0,0.00032876,5]
[361809193,1747823456760,-478.74,0.00032876,5]
[361809194,1747823456770,-3023.35,0.00032876,5]
[361809195,1747823456781,-2681.61,0.00032876,5]
[361809196,1747823456792,-420.0,0.00032876,5]
[361809197,1747823456814,-3921.51,0.00032876,5]
[361809198,1747823456827,-774.74,0.00032876,5]
[361809199,1747823456838,-420.0,0.00032876,5]
[361809200,1747823456849,-1064.83,0.00032876,5]
[361809201,1747823456860,-420.0,0.00032876,5]
[361809202,1747823456871,-11832.32,0.00032876,5]
[361809203,1747823456881,-1140.49,0.00032876,5]
[361809204,1747823456891,-280.72768,0.00032876,2]
[361809205,1747823456902,-514.48661474,0.00032876,5]
[361809206,1747823456912,-716.85,0.00032876,5]
[361809207,1747823456923,-1451.14,0.00032876,5]
[361809208,1747823456933,-4169.63,0.00032876,5]
[361809209,1747823456943,-614.3,0.00032876,5]
[361809210,1747823456953,-1980.16,0.00032876,5]
[361809211,1747823456964,-420.0,0.00032876,5]
[361809212,1747823456974,-1031.8,0.00032876,5]
[361809213,1747823456984,-2328.19,0.00032876,5]
[361809214,1747823456994,-420.0,0.00032876,5]
[361809215,1747823457007,-595.22,0.00032876,5]
[361809216,1747823457017,-2178.09,0.00032876,5]
[361809217,1747823457027,-420.0,0.00032876,5]
[361809218,1747823457038,-12779.36,0.00032876,5]
[361809219,1747823457049,-3199.69,0.00032876,5]
[361809220,1747823457059,-420.0,0.00032876,5]
[361809221,1747823457069,-464.93,0.00032876,5]
[361809222,1747823457080,-420.0,0.00032876,5]
[361809223,1747823457090,-1385.93,0.00032876,5]
[361809224,1747823457100,-3624.48,0.00032876,5]
[361809225,1747823457110,-1592.89,0.00032876,5]
[361809226,1747823457120,-420.0,0.00032876,5]
[361809227,1747823457130,-420.0,0.00032876,5]
[361809228,1747823457140,-282.66930817,0.00032876,5]
[361809229,1747823457150,-3239.25,0.00032876,5]
[361809230,1747823457161,-420.0,0.00032876,5]
[361809231,1747823457170,-420.0,0.00032876,5]
[361809232,1747823457180,-4626.37,0.00032876,5]
[361809233,1747823457190,-420.0,0.00032876,5]
[361809234,1747823457201,-1377.38,0.00032876,5]
[361809235,1747823457211,-2100.46,0.00032876,5]
[361809236,1747823457221,-150.0,0.00032876,5]
[361809237,1747823457231,-613.45,0.00032876,5]
[361809238,1747823457240,-232873.01,0.00032876,5]
[361809239,1747823457250,-420.0,0.00032876,5]
[361809240,1747823457260,-420.0,0.00032876,5]
[361809241,1747823457271,-814.19,0.00032876,5]
[361809242,1747823457280,-2870.6,0.00032876,5]
[361809243,1747823457290,-420.0,0.00032876,5]
[361809244,1747823457301,-420.0,0.00032876,5]
[361809245,1747823457311,-544.44,0.00032876,5]
[361809246,1747823457321,-2582.79,0.00032876,5]
[361809247,1747823457331,-1455.85,0.00032876,5]
[361809248,1747823457343,-1140.2,0.00032876,5]
[361809249,1747823457356,-3817.8,0.00032876,5]
[361809250,1747823457366,-1001.8,0.00032876,5]
[361809251,1747823457375,-746.18,0.00032876,5]
[361809252,1747823457387,-24741.12,0.00032876,5]
[361809253,1747823457397,-1332.61,0.00032876,5]
[361809254,1747823457407,-847.4,0.00032876,5]
[361809255,1747823457417,-6653.58,0.00032876,5]
[361809256,1747823457428,-2208.36,0.00032876,5]
[361809257,1747823457438,-420.0,0.00032876,5]
[361809258,1747823457447,-3466.92,0.00032876,5]
[361809259,1747823457457,-2780.98,0.00032876,5]
[361809260,1747823457468,-756.27,0.00032876,5]
[361809261,1747823457478,-4377.12,0.00032876,5]
[361809262,1747823457489,-3727.2,0.00032876,5]
[361809263,1747823457499,-43430.9,0.00032876,5]
[361809264,1747823457510,-662.42,0.00032876,5]
[361809265,1747823457520,-420.0,0.00032876,5]
[361809266,1747823457530,-1355.36,0.00032876,5]
[361809267,1747823457541,-1646.2,0.00032876,5]
[361809268,1747823457551,-420.0,0.00032876,5]
[361809269,1747823457561,-692.1,0.00032876,5]
[361809270,1747823457570,-420.0,0.00032876,5]
[361809271,1747823457582,-3823.68,0.00032876,5]
[361809272,1747823457592,-1950.11,0.00032876,5]
[361809273,1747823457602,-420.0,0.00032876,5]
[361809274,1747823457612,-472.25646258,0.00032876,5]
[361809275,1747823457623,-1929.18,0.00032876,5]
[361809276,1747823457634,-1375.19,0.00032876,5]
[361809277,1747823457644,-694.13,0.00032876,5]
[361809278,1747823457654,-27430.46,0.00032876,5]
[361809279,1747823457665,-2620.97,0.00032876,5]
[361809280,1747823457675,-420.0,0.00032876,5]
[361809281,1747823457684,-1035.87,0.00032876,5]
[361809282,1747823457694,-3873.45,0.00032876,5]
[361809283,1747823457704,-8392.23,0.00032876,5]
[361809284,1747823457715,-420.0,0.00032876,5]
[361809285,1747823457725,-420.0,0.00032876,5]
[361809286,1747823457735,-831.34,0.00032876,5]
[361809287,1747823457745,-683.8,0.00032876,5]
[361809288,1747823457755,-648.18,0.00032876,5]
[361809289,1747823457766,-420.0,0.00032876,5]
[361809290,1747823457776,-420.0,0.00032876,5]
[361809291,1747823457787,-420.0,0.00032876,5]
[361809292,1747823457796,-2236.59,0.00032876,5]
[361809293,1747823457806,-333.94,0.00032876,5]
[361809294,1747823457816,-862.9,0.00032876,5]
[361809295,1747823457826,-2431.99,0.00032876,5]
[361809296,1747823457836,-2055.72,0.00032876,5]
[361809297,1747823457846,-431.29629799,0.00032876,5]
[361809298,1747823457856,-30819.65,0.00032876,5]
[361809299,1747823457866,-426.36,0.00032876,5]
[361809300,1747823457876,-420.0,0.00032876,5]
[361809301,1747823457886,-3529.5,0.00032876,5]
[361809302,1747823457896,-420.0,0.00032876,5]
[361809303,1747823457906,-420.0,0.00032876,5]
[361809304,1747823457917,-420.0,0.00032876,5]
[361809305,1747823457927,-507.94,0.00032876,5]
[361809306,1747823457937,-7158.91,0.00032876,5]
[361809307,1747823457947,-1372.96,0.00032876,5]
[361809308,1747823457957,-340.8938408,0.00032876,5]
[361809309,1747823457968,-11263.62,0.00032876,5]
[361809310,1747823457978,-420.0,0.00032876,5]
[361809311,1747823457988,-1395.97,0.00032876,5]
[361809312,1747823457998,-10218.82,0.00032876,5]
[361809313,1747823458008,-11955.57,0.00032876,5]
[361809314,1747823458017,-420.0,0.00032876,5]
[361809315,1747823458027,-903.34,0.00032876,5]
[361809316,1747823458038,-4237.43,0.00032876,5]
[361809317,1747823458048,-1156.02,0.00032876,5]
[361809318,1747823458059,-420.0,0.00032876,5]
[361809319,1747823458068,-1250.1,0.00032876,5]
[361809320,1747823458079,-1940.56,0.00032876,5]
[361809321,1747823458089,-420.0,0.00032876,5]
[361809322,1747823458099,-1535.0,0.00032876,5]
[361809323,1747823458109,-420.0,0.00032876,5]
[361809324,1747823458119,-2611.65,0.00032876,5]
[361809325,1747823458129,-2088.87,0.00032876,5]
[361809326,1747823458139,-420.0,0.00032876,5]
[361809327,1747823458149,-604.9,0.00032876,5]
[361809328,1747823458159,-436.47,0.00032876,5]
[361809329,1747823458170,-420.0,0.00032876,5]
[361809330,1747823458180,-420.0,0.00032876,5]
[361809331,1747823458191,-512.59,0.00032876,5]
[361809332,1747823458201,-3994.4,0.00032876,5]
[361809333,1747823458210,-4967.59,0.00032876,5]
[361809334,1747823458221,-420.0,0.00032876,5]
[361809335,1747823458231,-420.0,0.00032876,5]
[361809336,1747823458241,-323.61873155,0.00032876,5]
[361809337,1747823458252,-500.0,0.00032876,5]
[361809338,1747823458262,-420.0,0.00032876,5]
[361809339,1747823458273,-997.3,0.00032876,5]
[361809340,1747823458284,-346.23867059,0.00032876,5]
[361809341,1747823458295,-420.0,0.00032876,5]
[361809342,1747823458304,-6358.26,0.00032876,5]
[361809343,1747823458315,-420.0,0.00032876,5]
[361809344,1747823458325,-2461.55,0.00032876,5]
[361809345,1747823458336,-3960.15,0.00032876,5]
[361809346,1747823458349,-2650.09,0.00032876,5]
[361809347,1747823458359,-1029.17,0.00032876,5]
[361809348,1747823458370,-655.48,0.00032876,5]
[361809349,1747823458380,-2763.51,0.00032876,5]
[361809350,1747823458390,-3823.46,0.00032876,5]
[361809351,1747823458400,-420.0,0.00032876,5]
[361809352,1747823458410,-500.0,0.00032876,2]
[361809353,1747823458419,-420.0,0.00032876,5]
[361809354,1747823458430,-420.0,0.00032876,5]
[361809355,1747823458440,-420.0,0.00032876,5]
[361809356,1747823458450,-420.0,0.00032876,5]
[361809357,1747823458600,-2138.94,0.00032876,5]
[361809358,1747823458654,-150.0,0.00032876,5]
[361809359,1747823458664,-420.0,0.00032876,5]
[361809360,1747823458674,-420.0,0.00032876,5]
[361809361,1747823458684,-3514.65,0.00032876,5]
[361809362,1747823458694,-578.47,0.00032876,5]
[361809363,1747823458704,-1778.66,0.00032876,5]
[361809364,1747823458713,-420.0,0.00032876,5]
[361809365,1747823458723,-500.0,0.00032876,5]
[361809366,1747823458733,-4923.96,0.00032876,5]
[361809367,1747823458744,-7467.95,0.00032876,5]
[361809368,1747823458754,-420.0,0.00032876,5]
[361809369,1747823458764,-420.87,0.00032876,5]
[361809370,1747823458774,-420.0,0.00032876,5]
[361809371,1747823458785,-150.0,0.00032876,5]
[361809372,1747823458795,-420.0,0.00032876,5]
[361809373,1747823458805,-1388.95,0.00032876,5]